[Event "*** Titled Tuesday Blitz"]
[Site "Chess.com"]
[Date "2021.04.20"]
[Round "8"]
[White "politeplayer"]
[Black "UnknownxArmy"]
[Result "1-0"]
[WhiteElo "2266"]
[BlackElo "2464"]
[TimeControl "180+1"]
[EndTime "11:27:02 PDT"]
[Termination "politeplayer won by checkmate"]

1. e4 {[%clk 0:03:00.9]} 1... e5 {[%clk 0:02:59.6]} 2. f4 {[%clk 0:03:00.1]}
2... exf4 {[%clk 0:02:59.8]} 3. Nf3 {[%clk 0:03:00.2]} 3... g5 {[%clk
0:03:00.4]} 4. Nc3 {[%clk 0:02:58.7]} 4... Nc6 {[%clk 0:02:59.6]} 5. d4 {[%clk
0:02:54.6]} 5... d6 {[%clk 0:02:59.8]} 6. g3 {[%clk 0:02:54]} 6... Bg7 {[%clk
0:02:57.4]} 7. Bc4 {[%clk 0:02:32]} 7... g4 {[%clk 0:02:47.4]} 8. Bxf4 {[%clk
0:02:03]} 8... gxf3 {[%clk 0:02:44.5]} 9. Qxf3 {[%clk 0:02:03.3]} 9... Nxd4
{[%clk 0:02:41.4]} 10. Qh5 {[%clk 0:01:58.5]} 10... Be6 {[%clk 0:02:36.2]} 11.
Bxe6 {[%clk 0:01:45.9]} 11... Nxe6 {[%clk 0:02:37.1]} 12. Qb5+ {[%clk
0:01:35.9]} 12... Kf8 {[%clk 0:01:52.3]} 13. O-O {[%clk 0:01:24.8]} 13... Ne7
{[%clk 0:01:28]} 14. Qxb7 {[%clk 0:01:15]} 14... Rb8 {[%clk 0:01:26.5]} 15. Qa6
{[%clk 0:01:11.3]} 15... Rxb2 {[%clk 0:01:24]} 16. e5 {[%clk 0:01:02.3]} 16...
dxe5 {[%clk 0:01:09.4]} 17. Be3 {[%clk 0:01:00.2]} 17... Kg8 {[%clk 0:00:37.1]}
18. Rad1 {[%clk 0:00:55.5]} 18... Qc8 {[%clk 0:00:36.7]} 19. Qa3 {[%clk
0:00:53.2]} 19... Rxc2 {[%clk 0:00:26.2]} 20. Qxe7 {[%clk 0:00:52.1]} 20... Qf8
{[%clk 0:00:26.7]} 21. Nd5 {[%clk 0:00:25.6]} 21... Qxe7 {[%clk 0:00:20.5]} 22.
Nxe7+ {[%clk 0:00:24.9]} 22... Kf8 {[%clk 0:00:21.4]} 23. Nf5 {[%clk 0:00:22.7]}
23... Ke8 {[%clk 0:00:14]} 24. Rb1 {[%clk 0:00:20.3]} 24... Kd7 {[%clk
0:00:11.3]} 25. Rfd1+ {[%clk 0:00:17.8]} 25... Nd4 {[%clk 0:00:11.5]} 26. Bxd4
{[%clk 0:00:15.5]} 26... exd4 {[%clk 0:00:11.3]} 27. Nxg7 {[%clk 0:00:15.9]}
27... Ke7 {[%clk 0:00:09]} 28. Nf5+ {[%clk 0:00:14.9]} 28... Kf6 {[%clk
0:00:09.5]} 29. Nxd4 {[%clk 0:00:15.2]} 29... Rxa2 {[%clk 0:00:09.9]} 30. Rf1+
{[%clk 0:00:14.8]} 30... Kg7 {[%clk 0:00:10.2]} 31. Nf5+ {[%clk 0:00:14.3]}
31... Kg6 {[%clk 0:00:09.8]} 32. Rbc1 {[%clk 0:00:12.9]} 32... Re8 {[%clk
0:00:09.8]} 33. Rc6+ {[%clk 0:00:12.1]} 33... Kg5 {[%clk 0:00:10.4]} 34. h4+
{[%clk 0:00:10.1]} 34... Kg4 {[%clk 0:00:10.9]} 35. Rc3 {[%clk 0:00:05.1]} 35...
Kh3 {[%clk 0:00:10.6]} 36. g4+ {[%clk 0:00:05.3]} 36... Kxg4 {[%clk 0:00:10.9]}
37. Rg3+ {[%clk 0:00:05.2]} 37... Kh5 {[%clk 0:00:07.9]} 38. Rg5# {[%clk
0:00:05.3]} 1-0

[Event "*** Titled Tuesday Blitz"]
[Site "Chess.com"]
[Date "2021.04.20"]
[Round "8"]
[White "AlexPapasimakopoulos"]
[Black "JoseRemolar"]
[Result "1-0"]
[WhiteElo "2607"]
[BlackElo "2431"]
[TimeControl "180+1"]
[EndTime "11:27:03 PDT"]
[Termination "AlexPapasimakopoulos won on time"]

1. d4 {[%clk 0:03:00.9]} 1... Nf6 {[%clk 0:02:59.8]} 2. c4 {[%clk 0:02:47.6]}
2... g6 {[%clk 0:02:58.5]} 3. Nc3 {[%clk 0:02:47.3]} 3... d6 {[%clk 0:02:58.3]}
4. e4 {[%clk 0:02:47.4]} 4... Bg7 {[%clk 0:02:55]} 5. f3 {[%clk 0:02:47.1]} 5...
O-O {[%clk 0:02:54.5]} 6. Nge2 {[%clk 0:02:47.1]} 6... c5 {[%clk 0:02:51.2]} 7.
d5 {[%clk 0:02:46.5]} 7... e6 {[%clk 0:02:47.7]} 8. Ng3 {[%clk 0:02:46.4]} 8...
h5 {[%clk 0:02:45.2]} 9. Bg5 {[%clk 0:02:44.9]} 9... Qb6 {[%clk 0:02:41.3]} 10.
Qd2 {[%clk 0:02:44.1]} 10... exd5 {[%clk 0:02:27.8]} 11. cxd5 {[%clk 0:02:45]}
11... Nbd7 {[%clk 0:02:26.4]} 12. Be2 {[%clk 0:02:36.3]} 12... Nh7 {[%clk
0:02:06.3]} 13. Bh4 {[%clk 0:02:30.9]} 13... g5 {[%clk 0:01:50.4]} 14. Bxg5
{[%clk 0:02:30.5]} 14... Nxg5 {[%clk 0:01:50.5]} 15. Qxg5 {[%clk 0:02:31.4]}
15... Qxb2 {[%clk 0:01:50.4]} 16. Rc1 {[%clk 0:02:32]} 16... Nf6 {[%clk
0:01:02.7]} 17. O-O {[%clk 0:02:22.9]} 17... Nh7 {[%clk 0:01:00.5]} 18. Qxh5
{[%clk 0:01:34.2]} 18... Bxc3 {[%clk 0:00:59.3]} 19. f4 {[%clk 0:01:33.2]} 19...
Bg7 {[%clk 0:00:46.4]} 20. Kh1 {[%clk 0:01:13.5]} 20... Qf6 {[%clk 0:00:40.5]}
21. Bd3 {[%clk 0:01:06.2]} 21... Qh6 {[%clk 0:00:37.8]} 22. Qe2 {[%clk
0:01:02.1]} 22... Bd7 {[%clk 0:00:35.1]} 23. e5 {[%clk 0:00:56.4]} 23... Rae8
{[%clk 0:00:31.4]} 24. Bf5 {[%clk 0:00:43.7]} 24... Bxf5 {[%clk 0:00:23.4]} 25.
Nxf5 {[%clk 0:00:44.6]} 25... Qg6 {[%clk 0:00:23.8]} 26. Nxg7 {[%clk 0:00:27.1]}
26... Qxg7 {[%clk 0:00:19.3]} 27. Rc3 {[%clk 0:00:27.7]} 27... Kh8 {[%clk
0:00:14.4]} 28. Rg3 {[%clk 0:00:27.7]} 28... Qh6 {[%clk 0:00:13.7]} 29. Rh3
{[%clk 0:00:26.2]} 29... Qg7 {[%clk 0:00:11.3]} 30. Rg3 {[%clk 0:00:20.6]} 30...
Qh6 {[%clk 0:00:10.7]} 31. Qb2 {[%clk 0:00:18.9]} 31... dxe5 {[%clk 0:00:08.8]}
32. fxe5 {[%clk 0:00:19.8]} 32... f6 {[%clk 0:00:05.8]} 33. e6 {[%clk
0:00:19.5]} 33... b6 {[%clk 0:00:05.4]} 34. a4 {[%clk 0:00:19.3]} 34... Re7
{[%clk 0:00:04.5]} 35. Qe2 {[%clk 0:00:18.4]} 35... Ng5 {[%clk 0:00:03.1]} 36.
d6 {[%clk 0:00:18.4]} 36... Rxe6 {[%clk 0:00:02.8]} 37. Qd3 {[%clk 0:00:13.3]}
37... Rd8 {[%clk 0:00:02.1]} 38. d7 {[%clk 0:00:13.6]} 38... Qg7 {[%clk
0:00:01.1]} 39. h4 {[%clk 0:00:12.6]} 1-0

[Event "*** Titled Tuesday Blitz"]
[Site "Chess.com"]
[Date "2021.04.20"]
[Round "8"]
[White "Rsnr"]
[Black "TST2014"]
[Result "1/2-1/2"]
[WhiteElo "2779"]
[BlackElo "2661"]
[TimeControl "180+1"]
[EndTime "11:27:04 PDT"]
[Termination "Game drawn by repetition"]

1. d4 {[%clk 0:03:00.9]} 1... Nf6 {[%clk 0:02:59.2]} 2. c4 {[%clk 0:03:01.5]}
2... c5 {[%clk 0:02:59.1]} 3. d5 {[%clk 0:03:01.7]} 3... b5 {[%clk 0:02:59.2]}
4. Qc2 {[%clk 0:03:02.3]} 4... g6 {[%clk 0:02:51.9]} 5. e4 {[%clk 0:03:02.7]}
5... d6 {[%clk 0:02:51.6]} 6. Nf3 {[%clk 0:03:02.4]} 6... Bg7 {[%clk 0:02:51.4]}
7. cxb5 {[%clk 0:03:03]} 7... a6 {[%clk 0:02:50.6]} 8. Nc3 {[%clk 0:03:02.6]}
8... O-O {[%clk 0:02:49.6]} 9. a4 {[%clk 0:03:02.8]} 9... Nbd7 {[%clk 0:02:42]}
10. Be2 {[%clk 0:03:01.5]} 10... axb5 {[%clk 0:02:41.1]} 11. Bxb5 {[%clk
0:03:02.4]} 11... Ne8 {[%clk 0:02:40.5]} 12. O-O {[%clk 0:03:02.2]} 12... Nc7
{[%clk 0:02:40.5]} 13. Be2 {[%clk 0:03:02.7]} 13... Ba6 {[%clk 0:02:40.2]} 14.
Bf4 {[%clk 0:02:56.9]} 14... Qb8 {[%clk 0:02:26.5]} 15. Rfe1 {[%clk 0:02:45]}
15... Qb4 {[%clk 0:02:19.3]} 16. Bd2 {[%clk 0:02:35]} 16... Bxe2 {[%clk
0:02:16.6]} 17. Rxe2 {[%clk 0:02:35.9]} 17... Rfb8 {[%clk 0:02:13.9]} 18. Rb1
{[%clk 0:02:31.5]} 18... Qb3 {[%clk 0:02:13]} 19. Be1 {[%clk 0:02:13.1]} 19...
Bxc3 {[%clk 0:02:05.4]} 20. Bxc3 {[%clk 0:02:13.1]} 20... Qxc2 {[%clk
0:02:05.3]} 21. Rxc2 {[%clk 0:02:14]} 21... Rxa4 {[%clk 0:02:05.2]} 22. Nd2
{[%clk 0:02:14.7]} 22... Nb5 {[%clk 0:02:01.4]} 23. f3 {[%clk 0:02:13.5]} 23...
Nxc3 {[%clk 0:01:58.7]} 24. Rxc3 {[%clk 0:02:14.4]} 24... Rab4 {[%clk
0:01:47.2]} 25. b3 {[%clk 0:02:10.4]} 25... Nb6 {[%clk 0:01:43.2]} 26. Ra1
{[%clk 0:02:09.6]} 26... Rd4 {[%clk 0:01:40.7]} 27. Rc2 {[%clk 0:02:10.2]} 27...
Ra8 {[%clk 0:01:32]} 28. Rxa8+ {[%clk 0:02:09.6]} 28... Nxa8 {[%clk 0:01:31.8]}
29. Kf2 {[%clk 0:02:10.5]} 29... f5 {[%clk 0:01:29.5]} 30. Ke3 {[%clk
0:02:08.5]} 30... Nb6 {[%clk 0:01:28]} 31. Ra2 {[%clk 0:02:08.4]} 31... Kf7
{[%clk 0:01:26.7]} 32. Ra6 {[%clk 0:02:07.5]} 32... Nd7 {[%clk 0:01:19.6]} 33.
Ra7 {[%clk 0:02:01.5]} 33... Ne5 {[%clk 0:01:14.2]} 34. Ke2 {[%clk 0:01:52.8]}
34... f4 {[%clk 0:01:04.5]} 35. Rb7 {[%clk 0:01:50.4]} 35... g5 {[%clk
0:01:03.4]} 36. h3 {[%clk 0:01:50.6]} 36... h5 {[%clk 0:01:03.4]} 37. Ra7 {[%clk
0:01:31.6]} 37... Rd3 {[%clk 0:00:56.5]} 38. Nc4 {[%clk 0:01:21.2]} 38... Rxb3
{[%clk 0:00:50.5]} 39. Nxd6+ {[%clk 0:00:54.2]} 39... Kf6 {[%clk 0:00:50.1]} 40.
Nf5 {[%clk 0:00:54.9]} 40... Rb2+ {[%clk 0:00:44]} 41. Kf1 {[%clk 0:00:55.3]}
41... Nc4 {[%clk 0:00:24.3]} 42. Rxe7 {[%clk 0:00:18]} 42... Ne3+ {[%clk
0:00:23.7]} 43. Kg1 {[%clk 0:00:18.4]} 43... Rb1+ {[%clk 0:00:19.5]} 44. Kf2
{[%clk 0:00:18.9]} 44... Rb2+ {[%clk 0:00:19.1]} 45. Kg1 {[%clk 0:00:19.6]}
45... Rb1+ {[%clk 0:00:13.6]} 46. Kf2 {[%clk 0:00:19.8]} 46... Rb2+ {[%clk
0:00:12.9]} 47. Kg1 {[%clk 0:00:20.3]} 1/2-1/2

[Event "*** Titled Tuesday Blitz"]
[Site "Chess.com"]
[Date "2021.04.20"]
[Round "8"]
[White "jannat65"]
[Black "Ze-Pequeno"]
[Result "0-1"]
[WhiteElo "2026"]
[BlackElo "2246"]
[TimeControl "180+1"]
[EndTime "11:27:04 PDT"]
[Termination "Ze-Pequeno won by resignation"]

1. e4 {[%clk 0:03:00.9]} 1... Nf6 {[%clk 0:02:53.7]} 2. Nc3 {[%clk 0:02:59.6]}
2... e5 {[%clk 0:02:53.4]} 3. Nf3 {[%clk 0:02:59.5]} 3... Nc6 {[%clk 0:02:52.5]}
4. d4 {[%clk 0:02:58.8]} 4... exd4 {[%clk 0:02:51.8]} 5. Nxd4 {[%clk 0:02:57]}
5... Nxe4 {[%clk 0:02:51.8]} 6. Nxe4 {[%clk 0:02:53.5]} 6... Qe7 {[%clk
0:02:50.3]} 7. Nxc6 {[%clk 0:02:34.6]} 7... Qxe4+ {[%clk 0:02:48.4]} 8. Be2
{[%clk 0:02:30.6]} 8... dxc6 {[%clk 0:02:24.6]} 9. O-O {[%clk 0:02:29.9]} 9...
Be6 {[%clk 0:02:17.8]} 10. Re1 {[%clk 0:02:27.9]} 10... Bd6 {[%clk 0:02:09]} 11.
Bg4 {[%clk 0:02:15.2]} 11... Qg6 {[%clk 0:02:03.8]} 12. Qe2 {[%clk 0:02:09.1]}
12... Kd7 {[%clk 0:01:59.9]} 13. Bxe6+ {[%clk 0:02:05.9]} 13... Qxe6 {[%clk
0:01:57]} 14. Be3 {[%clk 0:02:03.6]} 14... Rhe8 {[%clk 0:01:45]} 15. c4 {[%clk
0:02:02.7]} 15... c5 {[%clk 0:01:40.7]} 16. Rad1 {[%clk 0:02:00.5]} 16... Rad8
{[%clk 0:01:35.4]} 17. Qc2 {[%clk 0:01:40.1]} 17... Kc8 {[%clk 0:01:29.8]} 18.
a3 {[%clk 0:01:32.1]} 18... Qg6 {[%clk 0:01:09.4]} 19. Qxg6 {[%clk 0:01:22.7]}
19... hxg6 {[%clk 0:01:08.5]} 20. Rd5 {[%clk 0:01:19.8]} 20... Re4 {[%clk
0:01:02.1]} 21. Red1 {[%clk 0:01:16.9]} 21... Rxc4 {[%clk 0:01:00.3]} 22. b3
{[%clk 0:00:50.3]} 22... Rc3 {[%clk 0:00:59.1]} 23. b4 {[%clk 0:00:50.2]} 23...
cxb4 {[%clk 0:00:56.5]} 24. axb4 {[%clk 0:00:51.1]} 24... b6 {[%clk 0:00:43.5]}
25. Bd4 {[%clk 0:00:47.4]} 25... Bxh2+ {[%clk 0:00:36.2]} 26. Kxh2 {[%clk
0:00:42.3]} 26... Rxd5 {[%clk 0:00:37.1]} 27. Bxc3 {[%clk 0:00:40.5]} 27... Rxd1
{[%clk 0:00:35.5]} 28. Bxg7 {[%clk 0:00:41.4]} 28... Rd2 {[%clk 0:00:30.2]} 29.
Kg3 {[%clk 0:00:39.1]} 29... a5 {[%clk 0:00:29.6]} 30. bxa5 {[%clk 0:00:38.6]}
30... bxa5 {[%clk 0:00:30.4]} 31. f4 {[%clk 0:00:37.4]} 31... a4 {[%clk
0:00:30.2]} 32. Kf3 {[%clk 0:00:36.5]} 32... a3 {[%clk 0:00:29.7]} 33. g4 {[%clk
0:00:35.3]} 33... a2 {[%clk 0:00:29.1]} 34. Ke4 {[%clk 0:00:35.3]} 34... Rd1
{[%clk 0:00:26.8]} 35. f5 {[%clk 0:00:36.2]} 35... Kd7 {[%clk 0:00:25.4]} 36.
Ba1 {[%clk 0:00:37.1]} 36... Rxa1 {[%clk 0:00:24.3]} 37. fxg6 {[%clk 0:00:37.5]}
37... fxg6 {[%clk 0:00:24.4]} 38. Kf4 {[%clk 0:00:38.4]} 38... Ke6 {[%clk
0:00:23.9]} 39. Kg5 {[%clk 0:00:39.3]} 39... Kf7 {[%clk 0:00:24.3]} 40. Kh6
{[%clk 0:00:37.5]} 40... Rh1+ {[%clk 0:00:22.2]} 41. Kg5 {[%clk 0:00:37.2]}
41... a1=Q {[%clk 0:00:21.3]} 42. Kf4 {[%clk 0:00:37.7]} 42... c5 {[%clk
0:00:19.9]} 43. g5 {[%clk 0:00:38.6]} 43... Rh4+ {[%clk 0:00:18.3]} 44. Kg3
{[%clk 0:00:38.4]} 44... Rd4 {[%clk 0:00:17.9]} 45. Kf3 {[%clk 0:00:38]} 45...
c4 {[%clk 0:00:18.2]} 46. Ke3 {[%clk 0:00:37.8]} 46... Ke6 {[%clk 0:00:19.1]}
47. Ke2 {[%clk 0:00:37.4]} 47... Kf5 {[%clk 0:00:20]} 48. Ke3 {[%clk 0:00:37.8]}
48... Kxg5 {[%clk 0:00:20.1]} 49. Kf3 {[%clk 0:00:38.4]} 49... Kf5 {[%clk
0:00:21]} 50. Ke3 {[%clk 0:00:38.6]} 50... g5 {[%clk 0:00:21.9]} 51. Kf3 {[%clk
0:00:39.5]} 51... g4+ {[%clk 0:00:22.5]} 52. Ke3 {[%clk 0:00:40.4]} 52... Qc3+
{[%clk 0:00:22.2]} 53. Kf2 {[%clk 0:00:41.3]} 53... Rd2+ {[%clk 0:00:22.2]} 0-1

[Event "*** Titled Tuesday Blitz"]
[Site "Chess.com"]
[Date "2021.04.20"]
[Round "8"]
[White "Durarbayli"]
[Black "TheRealPeakyBlinder"]
[Result "0-1"]
[WhiteElo "2744"]
[BlackElo "2658"]
[TimeControl "180+1"]
[EndTime "11:27:06 PDT"]
[Termination "TheRealPeakyBlinder won on time"]

1. e4 {[%clk 0:03:00.9]} 1... c5 {[%clk 0:02:48.9]} 2. Nf3 {[%clk 0:02:59.9]}
2... d6 {[%clk 0:02:47.1]} 3. d4 {[%clk 0:02:59.6]} 3... cxd4 {[%clk 0:02:47.4]}
4. Nxd4 {[%clk 0:03:00.5]} 4... Nf6 {[%clk 0:02:48]} 5. Nc3 {[%clk 0:03:00.7]}
5... g6 {[%clk 0:02:48.8]} 6. Be3 {[%clk 0:02:56.8]} 6... a6 {[%clk 0:02:46]} 7.
Bc4 {[%clk 0:02:52.8]} 7... Ng4 {[%clk 0:02:27.8]} 8. Bg5 {[%clk 0:02:44.2]}
8... Bg7 {[%clk 0:02:27.8]} 9. Nd5 {[%clk 0:02:30.1]} 9... Nc6 {[%clk
0:02:03.6]} 10. c3 {[%clk 0:01:53.1]} 10... h6 {[%clk 0:02:01.8]} 11. Bh4 {[%clk
0:01:48.5]} 11... g5 {[%clk 0:01:55.7]} 12. Bg3 {[%clk 0:01:44.4]} 12... Nxd4
{[%clk 0:01:15.1]} 13. cxd4 {[%clk 0:01:45.3]} 13... e6 {[%clk 0:01:15.7]} 14.
Nc3 {[%clk 0:01:36.9]} 14... Qb6 {[%clk 0:01:12.6]} 15. Qxg4 {[%clk 0:01:03.2]}
15... Qxb2 {[%clk 0:01:11.4]} 16. O-O {[%clk 0:01:03.2]} 16... Qxc3 {[%clk
0:01:09.6]} 17. Rac1 {[%clk 0:01:03.3]} 17... Qa3 {[%clk 0:00:51.5]} 18. e5
{[%clk 0:00:53.1]} 18... d5 {[%clk 0:00:35.3]} 19. Bb3 {[%clk 0:00:51.2]} 19...
Bd7 {[%clk 0:00:25.9]} 20. Rc7 {[%clk 0:00:49.1]} 20... Rc8 {[%clk 0:00:23.9]}
21. Rxb7 {[%clk 0:00:40.8]} 21... Bb5 {[%clk 0:00:24.3]} 22. Bxd5 {[%clk
0:00:18.8]} 22... O-O {[%clk 0:00:19.4]} 23. Bxe6 {[%clk 0:00:15]} 23... Rc1
{[%clk 0:00:19.6]} 24. Rxb5 {[%clk 0:00:11.7]} 24... Rxf1+ {[%clk 0:00:19.1]}
25. Kxf1 {[%clk 0:00:12.6]} 25... Qc1+ {[%clk 0:00:19.3]} 26. Ke2 {[%clk
0:00:13]} 26... axb5 {[%clk 0:00:19.5]} 27. Bb3 {[%clk 0:00:12.1]} 27... Qb2+
{[%clk 0:00:18.4]} 28. Ke3 {[%clk 0:00:11.8]} 28... Qc1+ {[%clk 0:00:18.2]} 29.
Ke2 {[%clk 0:00:11]} 29... Qb2+ {[%clk 0:00:18.7]} 30. Kd3 {[%clk 0:00:11]}
30... Qb1+ {[%clk 0:00:18.7]} 31. Ke3 {[%clk 0:00:08.7]} 31... Qc1+ {[%clk
0:00:18.8]} 32. Ke4 {[%clk 0:00:07.7]} 32... Qe1+ {[%clk 0:00:17.4]} 33. Kd5
{[%clk 0:00:06.6]} 33... Rd8+ {[%clk 0:00:17]} 34. Kc6 {[%clk 0:00:06.1]} 34...
Qc3+ {[%clk 0:00:16.3]} 35. Kb7 {[%clk 0:00:06.2]} 35... Qxd4 {[%clk 0:00:12.9]}
36. Qf5 {[%clk 0:00:02.7]} 36... Rd7+ {[%clk 0:00:12]} 37. Kc8 {[%clk
0:00:02.2]} 37... Re7 {[%clk 0:00:10.5]} 0-1

[Event "*** Titled Tuesday Blitz"]
[Site "Chess.com"]
[Date "2021.04.20"]
[Round "8"]
[White "GoltsevDmitry2000"]
[Black "Mr_Sinigami"]
[Result "0-1"]
[WhiteElo "2729"]
[BlackElo "2628"]
[TimeControl "180+1"]
[EndTime "11:27:06 PDT"]
[Termination "Mr_Sinigami won by checkmate"]

1. e4 {[%clk 0:02:39.1]} 1... d5 {[%clk 0:02:57.9]} 2. exd5 {[%clk 0:02:38.9]}
2... Nf6 {[%clk 0:02:57.5]} 3. Nf3 {[%clk 0:02:37.8]} 3... Nxd5 {[%clk
0:02:57.1]} 4. d4 {[%clk 0:02:37.3]} 4... g6 {[%clk 0:02:56.8]} 5. c4 {[%clk
0:02:37.5]} 5... Nb6 {[%clk 0:02:56.8]} 6. Nc3 {[%clk 0:02:37.4]} 6... Bg7
{[%clk 0:02:56.5]} 7. Be3 {[%clk 0:02:37]} 7... O-O {[%clk 0:02:56]} 8. h3
{[%clk 0:02:36.1]} 8... Nc6 {[%clk 0:02:55.2]} 9. Be2 {[%clk 0:02:33.3]} 9... e5
{[%clk 0:02:54.9]} 10. d5 {[%clk 0:02:32.5]} 10... Ne7 {[%clk 0:02:54.6]} 11.
O-O {[%clk 0:02:27.9]} 11... Nf5 {[%clk 0:02:54.7]} 12. Bc5 {[%clk 0:02:21]}
12... Re8 {[%clk 0:02:54.5]} 13. Ba3 {[%clk 0:02:18.1]} 13... e4 {[%clk
0:02:50.7]} 14. Nh2 {[%clk 0:02:11.9]} 14... e3 {[%clk 0:02:47.4]} 15. c5 {[%clk
0:02:04.3]} 15... Bxc3 {[%clk 0:02:24]} 16. bxc3 {[%clk 0:01:56.1]} 16... Nxd5
{[%clk 0:02:23.4]} 17. Bb2 {[%clk 0:00:47]} 17... Nf4 {[%clk 0:01:57.5]} 18.
fxe3 {[%clk 0:00:44.6]} 18... Qxd1 {[%clk 0:01:27.6]} 19. Bxd1 {[%clk
0:00:41.3]} 19... Nd3 {[%clk 0:01:27.7]} 20. Bc1 {[%clk 0:00:39.6]} 20... Nxe3
{[%clk 0:01:18.8]} 21. Bxe3 {[%clk 0:00:40.5]} 21... Rxe3 {[%clk 0:01:18.1]} 22.
c6 {[%clk 0:00:38.9]} 22... bxc6 {[%clk 0:01:14]} 23. Bb3 {[%clk 0:00:38.2]}
23... Be6 {[%clk 0:01:12.6]} 24. Rad1 {[%clk 0:00:35.4]} 24... Bxb3 {[%clk
0:01:04.6]} 25. axb3 {[%clk 0:00:36.3]} 25... Ne5 {[%clk 0:01:04.5]} 26. Ng4
{[%clk 0:00:30.3]} 26... Nxg4 {[%clk 0:01:03.5]} 27. hxg4 {[%clk 0:00:31.2]}
27... Rxc3 {[%clk 0:00:56.2]} 28. Rd7 {[%clk 0:00:28.9]} 28... Rf8 {[%clk
0:00:56.4]} 29. Rxc7 {[%clk 0:00:25.3]} 29... a5 {[%clk 0:00:56]} 30. Ra1 {[%clk
0:00:22.1]} 30... Rxb3 {[%clk 0:00:54.1]} 31. Rxa5 {[%clk 0:00:20]} 31... Rc3
{[%clk 0:00:45.5]} 32. Kh2 {[%clk 0:00:16.7]} 32... Kg7 {[%clk 0:00:37]} 33.
Raa7 {[%clk 0:00:14.1]} 33... c5 {[%clk 0:00:33.1]} 34. Rc6 {[%clk 0:00:12.6]}
34... h6 {[%clk 0:00:28.1]} 35. g3 {[%clk 0:00:09.8]} 35... Rc2+ {[%clk
0:00:26.4]} 36. Kh3 {[%clk 0:00:10.2]} 36... Re8 {[%clk 0:00:26.4]} 37. Rcc7
{[%clk 0:00:10]} 37... Rf2 {[%clk 0:00:25.8]} 38. g5 {[%clk 0:00:08.8]} 38... h5
{[%clk 0:00:23.4]} 39. g4 {[%clk 0:00:08]} 39... Re3+ {[%clk 0:00:22.8]} 40. Kh4
{[%clk 0:00:08.4]} 40... Rh2# {[%clk 0:00:22.5]} 0-1

[Event "*** Titled Tuesday Blitz"]
[Site "Chess.com"]
[Date "2021.04.20"]
[Round "8"]
[White "artichaud"]
[Black "InitiatingASC"]
[Result "0-1"]
[WhiteElo "2229"]
[BlackElo "2419"]
[TimeControl "180+1"]
[EndTime "11:27:06 PDT"]
[Termination "InitiatingASC won on time"]

1. e4 {[%clk 0:03:00]} 1... c5 {[%clk 0:03:00]} 2. Nc3 {[%clk 0:02:59.7]} 2...
g6 {[%clk 0:02:58.8]} 3. d3 {[%clk 0:02:59.1]} 3... Bg7 {[%clk 0:02:59.2]} 4. g4
{[%clk 0:02:59.4]} 4... h5 {[%clk 0:02:52.9]} 5. g5 {[%clk 0:02:56.8]} 5... Nc6
{[%clk 0:02:51.2]} 6. f4 {[%clk 0:02:54.8]} 6... Nd4 {[%clk 0:02:47.7]} 7. Nce2
{[%clk 0:02:36.6]} 7... d5 {[%clk 0:02:36.7]} 8. c3 {[%clk 0:02:35.6]} 8... Nxe2
{[%clk 0:02:30]} 9. Qxe2 {[%clk 0:02:35]} 9... Bg4 {[%clk 0:02:29.4]} 10. Qc2
{[%clk 0:01:40.1]} 10... e5 {[%clk 0:02:21.1]} 11. h3 {[%clk 0:01:35.6]} 11...
Be6 {[%clk 0:02:19.7]} 12. Nf3 {[%clk 0:01:35]} 12... exf4 {[%clk 0:02:11.3]}
13. Bxf4 {[%clk 0:01:34.1]} 13... Ne7 {[%clk 0:01:51.2]} 14. Bg2 {[%clk
0:01:28.2]} 14... dxe4 {[%clk 0:01:41.2]} 15. dxe4 {[%clk 0:01:27.8]} 15... O-O
{[%clk 0:01:40.6]} 16. O-O {[%clk 0:01:26.4]} 16... Qb6 {[%clk 0:01:30]} 17.
Rad1 {[%clk 0:01:11.8]} 17... Bxa2 {[%clk 0:01:14.5]} 18. Rd7 {[%clk 0:00:59.1]}
18... Nc6 {[%clk 0:00:56.4]} 19. Bd6 {[%clk 0:00:52.3]} 19... Rfd8 {[%clk
0:00:37.2]} 20. Rxd8+ {[%clk 0:00:51.9]} 20... Rxd8 {[%clk 0:00:35.8]} 21. e5
{[%clk 0:00:52.8]} 21... Be6 {[%clk 0:00:20.4]} 22. Qf2 {[%clk 0:00:41.7]} 22...
Na5 {[%clk 0:00:18.3]} 23. Bxc5 {[%clk 0:00:38.5]} 23... Qb5 {[%clk 0:00:14.4]}
24. Bxa7 {[%clk 0:00:36]} 24... Nc4 {[%clk 0:00:14.6]} 25. b4 {[%clk 0:00:24]}
25... Nxe5 {[%clk 0:00:14.7]} 26. Nd4 {[%clk 0:00:18.2]} 26... Qa6 {[%clk
0:00:09.3]} 27. Nxe6 {[%clk 0:00:16.8]} 27... Qxe6 {[%clk 0:00:09.9]} 28. Bd4
{[%clk 0:00:16.5]} 28... Nd3 {[%clk 0:00:09.3]} 29. Qe3 {[%clk 0:00:10.5]} 29...
Qxe3+ {[%clk 0:00:07.8]} 30. Bxe3 {[%clk 0:00:10.3]} 30... Bxc3 {[%clk
0:00:08.3]} 31. Bxb7 {[%clk 0:00:08.9]} 31... Nxb4 {[%clk 0:00:07.6]} 32. Bg2
{[%clk 0:00:04.3]} 32... Bd4 {[%clk 0:00:07.7]} 33. Bxd4 {[%clk 0:00:03.7]}
33... Rxd4 {[%clk 0:00:08.6]} 34. Kh2 {[%clk 0:00:02.8]} 34... Kg7 {[%clk
0:00:09]} 35. Rb1 {[%clk 0:00:02.1]} 35... Nd5 {[%clk 0:00:08.9]} 36. Rb7 {[%clk
0:00:00.9]} 36... Nf4 {[%clk 0:00:08.5]} 0-1